bitfinex-derivatives/quotes_ETHF0:USTF0_20250831
["timestamp","ask_amount","ask_price","bid_price","bid_amount"]
[1756678953805,0.67653241,4468.2,4468.1,3.4338]
[1756678955504,0.18363241,4468.2,4468.1,3.4338]
[1756678955694,0.18364015,4468.2,4468.1,3.4338]
[1756678955899,0.48474015,4468.2,4468.1,3.4338]
[1756678956605,0.67654254,4468.2,4468.1,3.4338]
[1756678962806,0.67682569,4468.2,4468.1,3.4338]
[1756678963808,0.18392569,4468.2,4468.1,3.4338]
[1756678966309,0.18408676,4468.2,4468.1,3.4338]
[1756678972816,0.18408043,4468.2,4468.1,3.4338]
[1756678973615,0.18408043,4468.2,4468.1,3.83662]
[1756678974420,0.18408043,4468.2,4468.1,3.4338]
[1756678977118,0.1118,4468.4,4468.1,3.4338]
[1756678977322,0.18394856,4468.3,4468.1,3.4338]
[1756678977619,0.18394856,4468.2,4468.1,3.4338]
[1756678978722,0.18392705,4468.2,4468.1,3.4338]
[1756678980327,0.18392705,4468.2,4468.1,3.83662]
[1756678980527,0.18392705,4468.2,4468.1,3.4338]
[1756678986827,0.1847555,4468.2,4468.1,3.4338]
[1756678987428,0.18476059,4468.2,4468.1,3.4338]
[1756678987926,0.18476059,4468.3,4468.1,3.4338]
[1756678988130,0.18476059,4468.2,4468.1,3.4338]
[1756678988727,0.18476059,4468.3,4468.1,3.4338]
[1756678988934,0.1118,4468.4,4468.2,2.00988363]
[1756678989129,3.2078,4470.2,4468.3,2.23474495]
[1756678989332,0.4988,4469.3,4469.2,3.2078]
[1756678989538,0.68351931,4469.3,4469.2,3.4328]
[1756678991436,3.26041291,4469.3,4469.2,3.4328]
[1756678993335,3.26034532,4469.3,4469.2,3.4328]
[1756678995241,3.05914532,4469.3,4469.2,3.4328]
[1756678996741,3.26034532,4469.3,4469.2,3.4328]
[1756678997441,3.0756936,4469.3,4469.2,3.4328]
[1756678997633,3.26032821,4469.3,4469.2,3.4328]
[1756679002543,2.76152821,4469.3,4469.2,3.83553]
[1756679003044,3.05912821,4469.3,4469.2,3.83553]
[1756679003348,3.05912821,4469.3,4469.2,3.4328]
[1756679003647,3.05912821,4469.3,4469.2,3.83553]
[1756679004047,2.76152821,4469.3,4469.2,3.83553]
[1756679004641,1.20187019,4472.1,4469.8,0.40267]
[1756679004642,3.2078,4471.2,4469.8,0.40267]
[1756679004847,0.2012,4470.3,4470.2,3.6975]
[1756679005048,0.2012,4470.3,4470.2,3.9225]
[1756679005443,0.2012,4470.3,4470.2,4.09718677]
[1756679006749,0.4988,4470.3,4470.2,4.09718677]
[1756679007950,3.0756936,4470.3,4470.2,4.09718677]
[1756679013957,3.0756936,4470.3,4470.2,3.9225]
[1756679014149,3.0756936,4470.3,4470.2,3.4328]
[1756679014652,7.2993936,4470.3,4470.2,3.2078]
[1756679014955,7.2993936,4470.3,4470.2,0.225]
[1756679015744,7.0756936,4470.3,4470.2,0.225]
[1756679015956,6.7780936,4470.3,4469.5,3.2078]
[1756679016156,0.2012,4469.7,4469.5,3.2078]
[1756679016453,0.2012,4469.7,4469.6,0.225]
[1756679016454,0.4988,4469.7,4469.6,0.225]
[1756679016851,0.4988,4469.7,4469.6,0.7147]
[1756679024455,3.4328,4471.2,4469.7,0.2949]
[1756679024754,0.1915,4469.9,4469.8,0.4181]
[1756679024949,0.4682,4469.9,4469.8,0.713]
[1756679035369,0.4682,4469.8,4469.7,2.30362304]
[1756679035558,0.2767,4469.8,4469.7,3.12440304]
[1756679035761,3.0450936,4469.8,4469.7,2.30362304]
[1756679035963,3.0450936,4469.8,4469.7,2.23372304]
[1756679036165,3.0450936,4469.8,4469.7,0.225]
[1756679036463,0.2767,4469.7,4469.6,2.00872304]
[1756679036660,0.4682,4469.6,4469.1,2.79854042]
[1756679036968,0.1915,4468.9,4468.8,3.2078]
[1756679037166,0.4682,4468.9,4468.8,3.2078]
[1756679037367,0.4682,4468.9,4468.8,3.4328]
[1756679037569,4.4682,4468.9,4468.8,3.2078]
[1756679037770,0.1915,4468.6,4468.2,3.2078]
[1756679037962,0.1915,4468.3,4468.2,3.2078]
[1756679038163,0.4682,4468.3,4468.2,3.4328]
[1756679038467,0.4682,4468.3,4468.2,3.2078]
[1756679038669,0.4682,4468.3,4468.2,3.4328]
[1756679039169,0.4682,4468.3,4468.2,3.9208]
[1756679040265,3.0450936,4468.3,4468.2,3.9208]
[1756679041368,0.4682,4468.3,4468.2,3.9208]
[1756679041566,0.4682,4468.3,4468.2,5.200191]
[1756679043170,0.4682,4469.0,4468.9,0.488]
[1756679043372,0.4682,4469.0,4468.9,0.713]
[1756679044068,0.4682,4469.0,4468.9,0.225]
[1756679044767,3.2078,4469.1,4468.9,0.225]
[1756679044964,0.4682,4469.0,4468.9,0.225]
[1756679046471,0.4682,4469.0,4468.9,1.504391]
[1756679046775,0.4682,4469.0,4468.9,1.279391]
[1756679046969,0.4682,4469.0,4468.9,1.504391]
[1756679049072,0.4682,4469.0,4468.9,1.279391]
[1756679049278,0.4682,4469.0,4468.9,1.504391]
[1756679052583,0.4682,4469.0,4468.9,1.279391]
[1756679053177,4.4682,4469.0,4468.9,1.279391]
[1756679053579,4.4682,4469.0,4468.9,0.973891]
[1756679057483,4.6932,4469.0,4468.9,0.973891]
[1756679061184,4.4682,4469.0,4468.9,0.973891]
[1756679066487,5.02693244,4469.0,4468.9,0.973891]
[1756679069095,0.97623244,4469.0,4468.9,1.445391]
[1756679069396,0.7215,4469.0,4468.9,1.445391]
[1756679074197,1.28043038,4469.0,4468.9,1.445391]
[1756679083210,4.48823038,4469.0,4468.9,1.445391]
[1756679083815,3.76673038,4469.0,4468.9,1.445391]
[1756679085112,4.05663038,4469.0,4468.9,1.445391]
[1756679085311,4.24753038,4469.0,4468.9,1.445391]
[1756679090116,3.76673038,4469.0,4468.9,1.445391]
[1756679090315,3.2078,4469.0,4468.9,1.445391]
[1756679092716,0.225,4469.4,4468.9,1.445391]
[1756679092917,0.225,4469.4,4469.0,0.2867]
[1756679093119,0.5149,4469.4,4469.3,0.1837]
[1756679093320,0.7058,4469.4,4469.3,0.4704]
[1756679093519,0.4808,4469.4,4469.3,0.4704]
[1756679096319,3.2078,4469.5,4469.3,0.4704]
[1756679096518,3.2078,4469.5,4469.4,1.749791]
[1756679098321,3.2078,4470.0,4469.4,1.463091]
[1756679098527,3.2078,4470.0,4469.9,0.4704]
[1756679100418,3.4977,4470.0,4469.9,1.749791]
[1756679101624,3.2078,4470.0,4469.9,1.749791]
[1756679102225,3.4977,4470.0,4469.9,1.749791]
[1756679102420,3.6886,4470.0,4469.9,1.749791]
[1756679102918,1.20187019,4471.5,4469.9,1.749791]
[1756679103120,0.56129228,4471.4,4470.8,0.2867]
[1756679103326,0.4808,4471.7,4471.6,0.4704]
[1756679104028,0.2899,4472.0,4471.6,0.4704]
[1756679104226,0.4808,4472.0,4471.9,0.4704]
[1756679105223,0.4808,4472.0,4471.9,1.749791]
[1756679109526,0.4808,4472.0,4471.9,1.279391]
[1756679109929,0.4808,4472.0,4471.9,1.747691]
[1756679113834,0.098,4472.6,4471.9,1.747691]
[1756679114038,0.1936,4472.5,4472.4,0.1926]
[1756679114334,0.4825,4472.5,4472.4,0.4683]
[1756679114535,0.4825,4472.5,4472.4,0.2757]
[1756679115037,0.4825,4472.5,4472.4,0.4683]
[1756679115225,0.4825,4472.5,4472.4,1.747691]
[1756679119539,3.2078,4473.2,4472.4,1.747691]
[1756679119540,0.2889,4472.8,4472.7,0.1926]
[1756679119836,0.4825,4472.8,4472.7,0.4683]
[1756679120237,0.4825,4472.5,4472.4,0.2757]
[1756679120537,0.4825,4472.5,4472.4,0.4683]
[1756679121538,0.225,4473.0,4472.4,0.1926]
[1756679121740,0.225,4473.0,4472.1,3.2078]
[1756679121741,0.4825,4472.9,4472.8,0.4683]
[1756679121942,0.4825,4472.9,4472.1,3.2078]
[1756679122235,0.2889,4472.8,4472.2,0.2757]
[1756679122442,0.1936,4472.5,4472.4,1.471991]
[1756679122641,0.4825,4472.5,4472.4,1.747691]
[1756679122940,0.5139,4473.1,4472.5,0.2757]
[1756679123335,0.4825,4473.1,4473.0,0.4683]
[1756679125341,0.4825,4473.1,4473.0,1.747691]
[1756679125639,0.4825,4473.1,4473.0,1.279391]
[1756679127040,0.4825,4473.1,4473.0,1.747691]
[1756679127243,1.04096508,4473.1,4473.0,1.747691]
[1756679131341,1.26596508,4473.1,4473.0,1.747691]
[1756679132045,1.26596508,4473.1,4473.0,1.279391]
[1756679132348,1.26596508,4473.1,4473.0,1.06132601]
[1756679134250,1.26596508,4473.1,4473.0,1.33702601]
[1756679134448,1.26596508,4473.1,4473.0,1.06132601]
[1756679136151,1.26596508,4473.1,4473.0,1.25392601]
[1756679136349,1.26596508,4473.1,4473.0,1.52962601]
[1756679136555,1.04096508,4473.1,4473.0,1.52962601]
[1756679136747,1.26596508,4473.1,4473.0,1.52962601]
[1756679137753,1.26596508,4473.1,4473.0,1.06132601]
[1756679138253,1.26596508,4473.1,4473.0,1.53572601]
[1756679140255,0.78346508,4473.1,4473.0,1.53572601]
[1756679142156,0.55846508,4473.1,4473.0,1.31766916]
[1756679142356,0.78346508,4473.1,4473.0,1.50426916]
[1756679145768,0.55846508,4473.1,4473.0,1.50426916]
[1756679145965,0.78346508,4473.1,4473.0,1.50426916]
[1756679147569,1.28006508,4473.1,4473.0,1.50426916]
[1756679148270,1.05506508,4473.1,4473.0,1.50426916]
[1756679148463,1.28006508,4473.1,4473.0,1.50426916]
[1756679149966,1.28006508,4473.1,4473.0,1.06132601]
[1756679150670,6.70549527,4473.1,4472.0,0.2878]
[1756679150872,0.1972,4472.1,4472.0,0.4744]
[1756679151064,0.7216,4472.1,4472.0,0.4744]
[1756679151369,1.28006508,4472.1,4472.0,0.4744]
[1756679152470,0.7216,4472.1,4472.0,0.4744]
[1756679153870,0.7216,4472.1,4472.0,1.57221659]
[1756679155073,3.2078,4472.4,4472.2,0.1866]
[1756679155369,1.28178633,4472.3,4472.2,0.4744]
[1756679158373,1.05678633,4472.3,4472.2,0.4744]
[1756679158674,0.7216,4472.3,4472.2,0.4744]
[1756679159473,0.2994,4472.6,4472.3,0.4744]
[1756679159672,0.78509045,4472.5,4472.4,0.4744]
[1756679159871,0.56009045,4472.5,4472.4,0.4744]
[1756679160376,0.56009045,4472.5,4472.4,1.57221659]
[1756679160670,3.2078,4473.0,4472.4,5.57221659]
[1756679160875,3.2078,4473.0,4472.9,0.1866]
[1756679161078,0.2994,4473.3,4472.9,0.4744]
[1756679161277,0.2994,4473.3,4472.4,1.09781659]
[1756679161278,0.56001578,4473.2,4473.1,0.4744]
[1756679161471,0.78501578,4473.2,4473.1,0.4744]
[1756679161678,0.56001578,4473.2,4473.1,0.4744]
[1756679162378,0.225,4473.3,4473.2,0.4744]
[1756679162676,1.28149023,4473.3,4473.2,0.4744]
[1756679164082,1.05649023,4473.3,4473.2,0.4744]
[1756679164282,1.28149023,4473.3,4473.2,0.4744]
[1756679165275,1.28149023,4473.3,4473.2,1.57221659]
[1756679165876,0.7216,4473.3,4473.2,1.57221659]
[1756679171376,3.2078,4473.6,4473.2,1.57221659]
[1756679171582,0.4707,4473.5,4473.4,0.1997]
[1756679171783,0.4707,4473.5,4473.4,0.4868]
[1756679173777,0.6957,4473.5,4473.4,0.4868]
[1756679175382,0.6957,4473.5,4473.4,1.58461659]
[1756679178085,0.4707,4473.5,4473.4,1.58461659]
[1756679183286,3.3954,4474.1,4474.0,0.4868]
[1756679183487,4.17673523,4474.1,4474.0,0.26877875]
[1756679183889,4.45983523,4474.1,4474.0,0.26877875]
[1756679184390,4.23483523,4474.1,4474.0,0.26877875]
[1756679184591,4.45983523,4474.1,4474.0,0.26877875]
[1756679184779,4.45983523,4474.1,4474.0,0.46847875]
[1756679184780,4.23483523,4474.1,4474.0,0.46847875]
[1756679184985,0.4707,4474.1,4474.0,0.46847875]
[1756679185388,0.4707,4474.1,4474.0,1.56629534]
[1756679187797,0.2831,4474.3,4474.2,0.1997]
[1756679188092,0.2831,4474.3,4474.2,0.4868]
[1756679188594,0.4707,4474.3,4474.2,0.4868]
[1756679190293,0.4707,4474.3,4474.2,1.58461659]
[1756679193191,0.225,4474.6,4474.2,1.58461659]
[1756679193387,0.4126,4474.6,4474.5,0.1997]
[1756679193591,0.9688945,4474.6,4474.5,0.4868]
[1756679194796,0.7438945,4474.6,4474.5,0.4868]
[1756679194997,0.9688945,4474.6,4474.5,0.4868]
[1756679195393,1.2479945,4474.6,4474.5,1.58461659]
[1756679197293,0.6917,4474.6,4474.5,1.58461659]
[1756679197893,0.225,4474.8,4474.5,1.29751659]
[1756679198199,3.2078,4475.0,4474.7,0.4709]
[1756679198399,0.6953,4474.9,4474.8,0.4709]
[1756679198992,3.2078,4475.0,4474.9,0.2753]
[1756679199197,3.2078,4475.0,4474.9,0.4709]
[1756679199397,0.225,4475.3,4475.2,0.1956]
[1756679199598,0.4178,4475.3,4475.2,0.4709]
[1756679200299,0.6953,4475.3,4475.2,1.56871659]
[1756679200704,0.4703,4475.3,4475.2,1.56871659]
[1756679202895,0.1928,4475.3,4475.2,1.56871659]
[1756679203604,0.4703,4475.3,4475.2,1.56871659]
[1756679205598,0.1928,4475.3,4475.2,1.56871659]
[1756679205794,0.2775,4475.5,4475.2,1.56871659]
[1756679205795,0.2775,4475.5,4475.4,0.1956]
[1756679206003,0.225,4475.9,4475.5,0.2753]
[1756679206201,0.4703,4475.8,4475.7,0.4709]
[1756679210210,0.4703,4475.8,4475.7,1.56871659]
[1756679210412,1.0251714,4475.8,4475.7,1.56871659]
[1756679210708,0.4703,4475.8,4475.7,1.56871659]
[1756679213412,1.0254627,4475.8,4475.7,1.56871659]
[1756679213608,1.0254627,4475.8,4475.7,1.09781659]
[1756679213819,5.0254627,4475.8,4475.7,1.09781659]
[1756679214110,5.24889271,4475.8,4475.7,1.09781659]
[1756679214919,5.0254627,4475.8,4475.7,1.09781659]
[1756679215612,5.0254627,4475.8,4475.7,1.37311659]
[1756679216011,1.2504627,4475.8,4475.7,1.56871659]
[1756679217911,0.5551627,4475.8,4475.7,1.56871659]
[1756679218316,0.4703,4475.8,4475.7,1.56871659]
[1756679220217,0.4703,4475.8,4475.7,1.09781659]
[1756679220624,1.02582167,4475.8,4475.7,1.09781659]
[1756679221020,1.02582167,4475.8,4475.7,1.56871659]
[1756679221621,1.25082167,4475.8,4475.7,1.56871659]
[1756679221821,1.25082167,4475.8,4475.7,1.37311659]
[1756679222125,1.25082167,4475.8,4475.7,1.09781659]
[1756679223026,1.02582167,4475.8,4475.7,1.09781659]
[1756679223225,1.25082167,4475.8,4475.7,1.09781659]
[1756679223830,1.02582167,4475.8,4475.7,1.09781659]
[1756679224030,1.25082167,4475.8,4475.7,1.09781659]
[1756679224431,1.25082167,4475.8,4475.7,0.87987732]
[1756679226538,0.1928,4474.9,4474.8,0.4709]
[1756679226733,3.6256,4474.9,4474.8,0.4709]
[1756679226928,3.9031,4474.9,4474.8,0.4709]
[1756679227736,4.45972116,4474.9,4474.8,0.4709]
[1756679235343,0.2791,4474.8,4474.0,0.2997]
[1756679235538,0.2791,4474.6,4474.0,0.2997]
[1756679235735,0.225,4474.5,4474.0,0.2997]
[1756679235939,0.4209,4474.5,4474.4,0.1944]
[1756679236140,0.4209,4474.5,4474.4,0.4941]
[1756679236543,0.7,4474.5,4474.4,0.4941]
[1756679238052,0.2791,4474.4,4473.5,0.2997]
[1756679238240,0.2791,4474.1,4473.5,0.2997]
[1756679238444,0.225,4474.0,4473.5,0.2997]
[1756679238742,0.225,4474.0,4473.4,3.2078]
[1756679238743,0.475,4473.9,4473.8,0.4941]
[1756679239146,0.1959,4473.0,4472.9,0.4941]
[1756679239349,0.475,4473.0,4472.9,0.4941]
[1756679240144,0.2791,4472.9,4472.4,0.2997]
[1756679240344,0.475,4472.5,4472.4,0.4941]
[1756679240645,0.475,4472.7,4472.6,0.1944]
[1756679240851,0.475,4472.7,4472.6,0.4941]
[1756679242348,0.475,4472.7,4472.6,0.2997]
[1756679243043,0.475,4472.7,4472.6,0.4941]
[1756679256063,0.4742,4472.0,4471.9,0.4941]
[1756679256365,0.6992,4472.0,4471.9,0.4941]
[1756679257766,0.2783,4471.9,4470.8,0.2997]
[1756679258063,3.6821,4471.7,4471.6,0.4717]
[1756679258258,3.9071,4471.7,4471.6,0.4717]
[1756679258861,3.2078,4472.3,4471.6,0.1944]
[1756679259061,0.225,4472.2,4472.1,0.1943]
[1756679259260,0.225,4472.2,4472.1,0.4716]
[1756679259857,3.676,4472.8,4472.7,0.1943]
[1756679260061,3.901,4472.8,4472.7,0.2773]
[1756679260259,0.2784,4472.7,4471.8,0.2773]
[1756679260560,0.4682,4472.5,4472.4,0.4716]
[1756679264068,0.4682,4472.5,4472.4,0.2773]
[1756679264366,0.2784,4472.4,4471.3,0.2773]
[1756679264564,32.205,4473.0,4472.1,0.1943]
[1756679264565,0.4682,4472.2,4472.1,0.1943]
[1756679264766,0.4682,4472.2,4472.1,0.4716]
[1756679265567,0.6932,4472.2,4472.1,0.4716]
[1756679266665,0.6932,4472.2,4472.1,0.2773]
[1756679266864,0.4682,4471.4,4471.3,0.4716]
[1756679267067,0.6932,4471.4,4471.3,0.4716]
[1756679268268,1.24831695,4471.4,4471.3,0.2773]
[1756679268566,0.2784,4471.3,4470.8,0.2773]
[1756679268765,0.4682,4470.9,4470.8,0.4716]
[1756679268964,0.6932,4470.9,4470.8,0.4716]
[1756679270971,1.24947117,4470.9,4470.8,0.4716]
[1756679273267,0.6932,4470.9,4470.8,0.4716]
[1756679274572,0.6932,4470.9,4469.6,3.2078]
[1756679274871,0.4682,4470.4,4470.3,0.4716]
[1756679275470,3.4328,4470.5,4470.4,0.4716]
[1756679276375,3.2078,4470.5,4470.4,0.4716]
[1756679276766,0.225,4470.6,4470.4,0.1943]
[1756679276968,3.3976,4471.1,4471.0,0.1943]
[1756679277173,4.45636568,4471.1,4471.0,0.4716]
[1756679279778,4.23136568,4471.1,4471.0,0.4716]
[1756679279980,4.45636568,4471.1,4471.0,0.4716]
[1756679282775,3.76316568,4471.1,4471.0,0.4716]
[1756679282971,3.2078,4471.1,4471.0,0.4716]
[1756679283178,3.2078,4471.6,4471.5,0.1943]
[1756679283378,3.98834306,4471.6,4471.5,0.4716]
[1756679284572,4.26674306,4471.6,4471.5,0.4716]
[1756679284776,4.45654306,4471.6,4471.5,0.4716]
[1756679285974,3.95314306,4471.6,4471.5,0.4716]
[1756679286182,3.4328,4471.6,4471.5,0.4716]
[1756679286581,3.901,4471.6,4471.5,0.4716]
[1756679288472,3.4328,4471.6,4471.5,0.4716]
[1756679288677,3.2078,4471.6,4471.5,0.4716]
[1756679288885,3.4328,4471.6,4471.5,0.4716]
[1756679289382,3.9085,4471.6,4471.5,0.4716]
[1756679292584,0.7007,4471.6,4471.5,0.4716]
[1756679299082,0.2785,4471.5,4471.1,3.2078]
[1756679299282,0.4757,4471.2,4471.1,3.6809]
[1756679300789,0.4757,4471.2,4471.1,0.4731]
[1756679304793,0.4222,4471.6,4471.5,0.1951]
[1756679304995,0.1972,4471.6,4471.5,0.4731]
[1756679305390,0.4758,4471.6,4471.5,0.4731]
[1756679307398,3.4864,4472.1,4472.0,0.4731]
[1756679307602,4.04294853,4472.1,4472.0,0.4731]
[1756679307902,3.4864,4472.1,4472.0,0.4731]
[1756679308495,3.2078,4472.1,4472.0,0.4731]
[1756679308896,3.6836,4472.1,4472.0,0.4731]
[1756679314891,0.4758,4472.1,4472.0,0.4731]
[1756679315500,0.1972,4472.6,4472.5,0.1951]
[1756679315704,0.4758,4472.6,4472.5,0.4731]
[1756679323817,0.1972,4472.6,4472.0,3.2078]
[1756679324016,0.4626,4472.2,4472.1,0.2768]
[1756679324215,0.4626,4472.2,4472.1,0.4762]
[1756679324917,0.2776,4472.8,4472.4,0.1994]
[1756679325115,0.2776,4472.8,4472.7,0.1994]
[1756679325316,0.4626,4472.8,4472.7,0.4762]
[1756679327515,0.2776,4472.7,4472.6,0.1994]
[1756679327714,0.4626,4472.7,4472.6,0.4762]
[1756679342928,0.4626,4472.7,4472.0,8.5788]
[1756679343132,0.4626,4472.1,4472.0,8.5788]
[1756679343330,0.4626,4472.1,4472.0,5.371]
[1756679343533,0.4626,4471.6,4471.5,3.2078]
[1756679343939,0.4626,4471.6,4471.3,0.2768]
[1756679344531,0.4626,4471.5,4471.4,0.1994]
[1756679344727,0.4626,4471.5,4471.4,0.4762]
[1756679365048,0.6876,4471.5,4471.4,0.4762]
[1756679365345,0.4778,4470.9,4470.8,0.4719]
[1756679366153,0.225,4471.1,4470.8,0.4719]
[1756679366353,0.7028,4471.1,4471.0,0.4719]
[1756679371653,0.225,4471.1,4471.0,0.4719]
[1756679371855,0.7028,4471.1,4471.0,0.4719]
[1756679374351,0.7028,4471.1,4470.7,3.2078]
[1756679374650,0.1992,4470.9,4470.8,0.2876]
[1756679374851,0.1992,4470.9,4470.8,0.4719]
[1756679375049,0.1992,4470.9,4470.1,32.214]
[1756679375050,0.1992,4470.9,4470.2,0.2876]
[1756679375451,0.4778,4470.8,4470.7,0.1843]
[1756679375651,0.4778,4470.8,4470.7,0.4719]
[1756679377757,0.2786,4471.0,4470.9,0.1843]
[1756679377951,0.4778,4471.0,4470.9,0.4624]
[1756679378856,0.4778,4471.0,4470.9,0.2781]
[1756679381453,0.7028,4471.0,4470.9,0.2781]
[1756679384761,0.7028,4471.0,4470.9,0.4682]
[1756679390964,0.4793,4471.0,4470.9,0.4682]
[1756679391167,0.7043,4471.0,4470.9,0.4682]
[1756679392068,0.7043,4471.0,4470.9,0.2781]
[1756679392561,0.7043,4471.0,4469.6,0.40269]
[1756679392562,0.4783,4470.3,4470.2,0.4682]
[1756679392761,3.6861,4470.3,4470.2,0.4682]
[1756679398674,3.6861,4470.3,4470.2,0.2781]
[1756679399774,3.4085,4470.3,4469.7,0.2781]
[1756679399978,0.4783,4469.8,4469.7,0.4682]
[1756679400578,0.5026,4470.0,4469.9,0.1901]
[1756679400780,3.2078,4470.3,4470.2,0.1901]
[1756679401080,3.4328,4470.3,4470.2,0.4682]
[1756679401579,3.9111,4470.3,4470.2,0.4682]
[1756679403277,3.9111,4470.3,4470.2,0.2781]
[1756679403478,0.2776,4470.2,4469.2,5.371]
[1756679403679,0.4783,4469.4,4469.3,0.4682]
[1756679403983,0.7033,4469.4,4469.3,0.4682]
[1756679404376,0.60812886,4469.4,4468.7,0.2781]
[1756679404584,0.60812886,4469.4,4469.0,0.1901]
[1756679404585,0.4783,4469.1,4469.0,0.1901]
[1756679404877,0.66072886,4469.1,4469.0,0.4682]
[1756679405572,0.66072886,4469.1,4468.0,3.2078]
[1756679405779,3.4328,4469.2,4468.0,3.2078]
[1756679405780,0.2776,4468.9,4468.1,0.2781]
[1756679406075,0.88572886,4468.8,4468.7,0.4682]
[1756679407490,0.2007,4468.2,4468.1,0.4682]
[1756679407784,0.66072886,4468.2,4468.1,0.4682]
[1756679408387,0.38312886,4468.2,4468.1,0.4682]
[1756679408582,0.18242886,4468.2,4468.1,0.4682]
[1756679410182,0.18187875,4468.2,4468.1,0.4682]
[1756679410387,0.18187875,4468.2,4468.1,0.4666]
[1756679410784,0.18183091,4468.2,4468.1,0.4666]
[1756679411092,0.46123091,4468.2,4468.1,0.4666]
[1756679411286,0.66073091,4468.2,4468.1,0.4666]
[1756679413482,0.2794,4468.1,4467.0,0.2765]
[1756679413680,0.4789,4467.1,4467.0,0.4603]
[1756679413986,3.81413091,4467.1,4466.4,0.2765]
[1756679414193,0.4789,4466.5,4466.4,0.4603]
[1756679414386,0.18183091,4466.5,4466.4,0.4603]
[1756679420998,0.18101248,4466.5,4466.4,0.4603]
[1756679427203,0.2798,4466.4,4465.9,0.2765]
[1756679427399,0.18101248,4466.3,4465.8,0.2765]
[1756679427598,0.18101248,4466.2,4466.1,0.4603]
[1756679427799,3.6323,4466.5,4466.4,0.1838]
[1756679428095,4.09327241,4466.5,4466.4,0.4603]
[1756679429005,3.86827241,4466.5,4466.4,0.4603]
[1756679429906,0.18117241,4466.5,4466.4,0.4603]
[1756679431199,0.18117241,4466.5,4466.4,3.6681]
[1756679431607,3.2078,4467.0,4466.4,3.6681]
[1756679431808,0.18132535,4466.9,4466.5,0.2765]
[1756679432011,0.66062535,4466.9,4466.8,0.4603]
[1756679434214,0.18132535,4466.9,4466.8,0.4603]
[1756679434411,0.18132535,4466.9,4466.8,4.4603]
[1756679434716,0.18132535,4466.9,4466.8,0.4603]
[1756679436813,0.46112535,4466.9,4466.8,0.4603]
[1756679437016,0.18132535,4466.9,4466.8,0.4603]
[1756679442313,0.18157019,4466.9,4466.8,0.4603]
[1756679446625,0.64947019,4466.9,4466.8,0.4603]
[1756679446818,0.37077019,4466.9,4466.5,5.371]
[1756679447015,0.4679,4466.5,4466.1,0.3033]
[1756679447221,0.4679,4466.0,4465.9,3.5111]
[1756679447523,0.64947019,4466.0,4465.9,3.5111]
[1756679448021,0.64947019,4466.0,4465.9,0.3033]
[1756679448210,0.1892,4465.5,4465.4,3.3976]
[1756679448416,0.18157019,4465.5,4465.4,3.9259]
[1756679448617,0.64947019,4465.5,4465.4,3.9259]
[1756679448811,0.64947019,4465.5,4465.4,3.7009]
[1756679449015,0.64947019,4465.5,4465.4,0.4931]
[1756679451125,0.37077019,4465.5,4465.4,0.4931]
[1756679451327,0.64947019,4465.5,4465.4,0.4931]
[1756679453022,0.4679,4465.5,4465.4,0.4931]
[1756679453320,0.64929591,4465.5,4465.4,0.4931]
[1756679453725,0.6492636,4465.5,4465.4,0.4931]
[1756679455722,0.1813636,4465.5,4465.4,0.4931]
[1756679461732,0.4600636,4465.5,4465.4,0.4931]
[1756679461924,0.6492636,4465.5,4465.4,0.4931]
[1756679462839,0.64909289,4465.5,4465.4,0.4931]
[1756679464150,0.18119289,4465.5,4465.4,3.7009]
[1756679464344,0.2787,4466.2,4465.4,3.7009]
[1756679464641,0.4679,4466.2,4466.1,0.1898]
[1756679464833,0.4679,4466.2,4466.1,0.4931]
[1756679465243,0.1892,4465.6,4465.5,0.4931]
[1756679465438,0.4679,4465.6,4465.5,0.4931]
[1756679466537,3.2078,4466.3,4465.5,0.4931]
[1756679466743,0.50262,4466.2,4465.6,0.3033]
[1756679467141,0.4679,4465.7,4465.6,0.4931]
[1756679473542,0.1978,4465.4,4464.8,3.2078]
[1756679473748,0.2769,4465.3,4464.8,3.2078]
[1756679473947,0.1978,4464.9,4464.8,3.2078]
[1756679474148,0.4747,4464.9,4464.8,3.6761]
[1756679474645,0.4747,4464.9,4464.5,0.225]
[1756679474646,0.2769,4464.8,4464.4,0.2752]
[1756679474947,0.4747,4464.4,4464.3,3.6761]
[1756679475349,0.4747,4464.4,4464.3,0.4683]
[1756679479644,0.4747,4464.4,4464.1,0.10304313]
[1756679480343,0.4747,4464.2,4464.1,0.10304313]
[1756679480750,0.4747,4464.2,4464.1,0.37824313]
[1756679481450,0.4747,4464.2,4464.1,0.57134313]
[1756679481955,0.225,4464.5,4464.1,0.29614313]
[1756679482251,0.225,4464.5,4464.4,0.1931]
[1756679482445,0.6997,4464.5,4464.4,0.4683]
[1756679487059,0.2769,4464.7,4464.5,0.2752]
[1756679487358,3.4328,4464.8,4464.7,0.4683]
[1756679487557,3.2078,4464.8,4464.7,0.4683]
[1756679487757,3.6825,4464.8,4464.7,0.4683]
[1756679488853,0.4747,4464.8,4464.7,0.4683]
[1756679489057,0.4747,4464.8,4464.7,0.2752]
[1756679489255,0.4747,4464.8,4464.7,0.4683]
[1756679492859,0.225,4465.0,4464.8,0.2752]
[1756679493166,0.6997,4465.0,4464.9,0.1931]
[1756679493364,0.6997,4465.0,4464.9,0.4683]
[1756679494562,0.88255095,4465.0,4464.9,0.4683]
[1756679494954,0.6997,4465.0,4464.9,0.4683]
[1756679495154,0.8825872,4465.0,4464.9,0.4683]
[1756679495565,0.6575872,4465.0,4464.9,0.4683]
[1756679495864,0.4597872,4465.0,4464.9,0.4683]
[1756679496065,0.65758436,4465.0,4464.9,0.4683]
[1756679499163,0.18288436,4465.0,4464.9,0.4683]
[1756679499464,0.18288436,4465.0,4464.9,4.69227]
[1756679499966,0.18288436,4465.0,4464.9,4.4683]
[1756679500469,0.46258436,4465.0,4464.9,0.4683]